Cogmind - Beta 16.1 @@@ ROGUE MODE // 2026.03.20 @ 00:02:56 Player: Ceorik Result: Destroyed by S-10 Pest with Light Assault Rifle Performance ------------- Evolutions (0) 0 Regions Visited (2) 400 Robots Destroyed (26) 130 Value Destroyed (551) 551 Prototype IDs (0) 0 Alien Tech Used (0) 0 Bonus (0) 0 TOTAL SCORE: 1081 Bonus ------- None Cogmind --------- Core Integrity 0/250 Matter 300/300 Energy 250/250 System Corruption 0% Temperature Cool (0) Movement Rolling (115) Ox1 Location -10/Mines Parts ------- > --- POWER (1) -------- Ion Engine > --- PROPULSION (2) --- Light Treads Compact Wheel > --- UTILITY (2) ------ Large Storage Unit > --- WEAPON (2) ------- Small Laser Small Laser > --- INVENTORY (15) --- Light Ion Engine Light Ion Engine Light Nuclear Core Light Treads Wheel Large Storage Unit Medium Matter Pod (100) Hacking Suite Small Laser Small Laser Mining Laser Peak State ------------ > --- POWER ------------ Ion Engine > --- PROPULSION ------- Light Treads Wheel > --- UTILITY ---------- Improved Heat Sink Large Storage Unit > --- WEAPON ----------- Small Laser Small Laser > --- INVENTORY -------- Light Ion Engine Light Treads Compact Wheel Large Storage Unit Hacking Suite Small Laser Mining Laser Mining Claw [Rating: 10] Favorites ----------- Power Ion Engine Engine Ion Engine Propulsion Light Treads Treads Light Treads Wheel Wheel Utility Large Storage Unit Device Improved Heat Sink Storage Large Storage Unit Weapon Small Laser Energy Gun Small Laser Ballistic Gun Assault Rifle Build | -11 -10 -10 ------- Run | Yrd Mat Min Slots Evolved . | . . . Power . | . . . Propulsion . | . . . Utility . | . . . Weapon . | . . . Parts Attached 16 | 8 7 1 Power 3 | 2 1 . Engine 3 | 2 1 . Core . | . . . Reactor . | . . . Propulsion 4 | 2 1 1 Treads 2 | 2 . . Leg . | . . . Wheel 2 | . 1 1 Hover . | . . . Flight . | . . . Utility 4 | 2 2 . Device 2 | 1 1 . Storage 2 | 1 1 . Processor . | . . . Hackware . | . . . Protection . | . . . Artifact . | . . . Weapon 5 | 2 3 . Energy Gun 3 | 1 2 . Energy Cannon . | . . . Ballistic Gun 2 | 1 1 . Ballistic Cannon . | . . . Launcher . | . . . Special Weapon . | . . . Impact Weapon . | . . . Slashing Weapon . | . . . Piercing Weapon . | . . . Special Melee Weapon . | . . . Unidentified Prototypes . | . . . Parts Lost 6 | . 4 2 Power 1 | . 1 . Propulsion 2 | . 1 1 Utility 1 | . . 1 Weapon 2 | . 2 . Highest Loss Streak 2 | . 2 1 To Critical Strikes . | . . . Average Backups 6 | 3 5 9 Power 1 | . . 1 Propulsion 1 | 1 1 1 Utility 1 | . . 3 Weapon 2 | . 2 2 Tool/Special . | . . . Unused Backups 9 | . 1 8 Power 2 | . . 2 Propulsion 1 | . . 1 Utility 3 | . . 3 Weapon 3 | . 1 2 Tool/Special . | . . . Average Slot Usage (%) 95 | . 98 91 Engine 14 | . 14 14 Treads 13 | . 13 14 Wheel 13 | . 13 13 Device 10 | . 13 6 Storage 14 | . 14 14 Energy Gun 21 | . 16 28 Ballistic Gun 5 | . 10 . Peak Build Rating 10 | 7 10 10 Average Rating 8 | 5 8 8 On Entrance 5 | . 7 10 Avg Prop Armor Cover (%) 12 | . 12 13 Naked Turns . | . . . Heaviest Build 28 | 14 28 28 Greatest Support 40 | 40 10 16 Greatest Overweight (x) 4 | . 4 2 Average Overweight (x) 1 | . 1 1 Largest Inventory Capacity 15 | 8 15 15 Average Capacity 11 | 7 10 15 Most Carried 11 | 4 8 11 Average Carried 6 | 3 5 9 Final Capacity 15 | 8 15 15 Final Carried 11 | 4 8 11 Class Distribution -------------------- 70% | Mutant 29% | Scavenger-Mutant Dominant Class ---------------- Mutant | -10/Materials Mutant | -10/Mines Resources | -11 -10 -10 ----------- Run | Yrd Mat Min Matter Collected 627 | 243 279 105 Remotely . | . . . Salvage Created 807 | 39 535 233 Parts 52 | 3 31 18 Haulers Intercepted 1 | . 1 . Recyclers Shooed 1 | . 1 . Parts Field Recycled . | . . . Retrieved Matter . | . . . Parts Self-Destructed . | . . . Prevented . | . . . Parts Restored . | . . . Kills | -11 -10 -10 ------- Run | Yrd Mat Min Combat Hostiles Destroyed 15 | . 10 5 Guns 15 | . 10 5 Classes Destroyed 8 | 1 5 2 Worker 4 | . 1 3 Tunneler 2 | 2 . . Hauler 1 | . 1 . Recycler 1 | . . 1 Operator 2 | . 2 . Watcher 1 | . 1 . Swarmer 3 | . . 3 Grunt 12 | . 10 2 Best Kill Streak 3 | 1 3 3 Combat Bots Only 3 | . 3 3 Max Kills in Single Turn 2 | 1 1 2 Gunslinging 1 | . . 1 Exploded . | . . . Melee . | . . . Uniques/NPCs Destroyed . | . . . Combat | -11 -10 -10 -------- Run | Yrd Mat Min Hostile Shots Fired 100 | . 76 24 Missed 22 | . 19 3 Hits 78 | . 57 21 Projectile 78 | . 57 21 Damage Taken 944 | . 714 230 Core 252 | . 175 77 Absorbed by Shields . | . . . Core Remaining (%) 100 | 100 . . Volleys Fired 83 | 4 59 20 Largest 2 | 2 2 2 Hottest 80 | 60 80 80 Shots Fired 164 | 8 116 40 Gun 164 | 8 116 40 Cannon . | . . . Launcher . | . . . Special . | . . . Kinetic 46 | 4 42 . Thermal 118 | 4 74 40 Explosive . | . . . Electromagnetic . | . . . Robot Hit Streak 14 | 3 14 10 Robot Miss Streak 4 | 2 3 4 Penetration Max . | . . . Secondary Targets 3 | . 1 2 Max Gunslinging Chain 1 | . 1 1 Shots Hit Robots 116 | 4 86 26 Core Hits 50 | 2 35 13 Critical Kills . | . . . Critical Parts Destroyed . | . . . Critical Strikes . | . . . Melee Attacks . | . . . Impact . | . . . Slashing . | . . . Piercing . | . . . Sneak Attacks . | . . . Combat Hostiles . | . . . Follow-up Attacks . | . . . Damage Inflicted 1296 | 47 966 283 Guns 1296 | 47 966 283 Cannons . | . . . Explosions . | . . . Melee . | . . . Ramming . | . . . Kinetic 351 | 15 336 . Thermal 945 | 32 630 283 Explosive . | . . . Electromagnetic . | . . . Impact . | . . . Slashing . | . . . Piercing . | . . . Highest Corruption . | . . . Average Corruption . | . . . Corruption Purged . | . . . Corruption Blocked . | . . . Overload Shots . | . . . Overflow Damage . | . . . Projectiles . | . . . Explosions . | . . . Melee . | . . . Knockbacks . | . . . Impact . | . . . Kinetic . | . . . Secondary . | . . . Self-Inflicted Damage . | . . . Shots . | . . . Rammed . | . . . Targets Rammed . | . . . Kicked . | . . . Crushed . | . . . Highest Temperature 182 | . 48 182 Average Temperature 48 | . 16 66 Received Heat Transfer 471 | . 387 84 Siege Activations . | . . . Martial Activations . | . . . Shielding Activations . | . . . Robots Disrupted . | . . . Combat Hostiles . | . . . Robots Corrupted . | . . . Combat Hostiles . | . . . Parts Fried . | . . . Impact Corruptions . | . . . Robots Melted . | . . . Combat Hostiles . | . . . Parts Melted 3 | . 3 . Heat Transferred 2175 | 75 1450 650 Parts Sabotaged . | . . . Parts Stolen . | . . . Parts Stripped . | . . . Power Chain Reactions . | . . . Alert | -11 -10 -10 ------- Run | Yrd Mat Min Maximum Alert Level . | . . . Low Security (%) 100 | 100 100 100 Level 1 . | . . . Level 2 . | . . . Level 3 . | . . . Level 4 . | . . . Level 5 . | . . . High Security . | . . . Max Security . | . . . Peak Influence 115 | 5 115 60 Initial 1 | . . 1 Average 28 | . 42 17 Influence Increases 504 | 10 324 170 Destroy 0b10 Robot/C 300 | . 200 100 Destroy 0b10 Robot/NC 55 | 10 25 20 Destroy Leader 74 | . 54 20 Lose Combat Pursuer 75 | . 45 30 Influence Decreases 476 | 10 318 148 Entered New Map 5 | . . 5 Time Decay 324 | 10 191 123 Lost Part 60 | . 40 20 Purge Threat 87 | . 87 . Squads Dispatched 3 | . 3 . Investigation . | . . . Extermination . | . . . Reinforcement 3 | . 3 . Assault . | . . . Garrison . | . . . Intercept . | . . . Searches Triggered . | . . . Construction Impeded . | . . . Haulers Reinforced . | . . . Active Scanning Responses . | . . . Cargo Convoy Interrupts . | . . . Stealth | -11 -10 -10 --------- Run | Yrd Mat Min Distress Signals 1 | . 1 . Communications Jammed . | . . . Distress Signals . | . . . Times Spotted 33 | . 23 10 Peak Tracking Total 5 | . 5 3 Tactical Retreats 2 | . 1 1 Traps | -11 -10 -10 ------- Run | Yrd Mat Min Traps Triggered 3 | . 3 . Indirectly . | . . . Trap Hack Attempts . | . . . Triggered . | . . . Disarmed . | . . . Reprogrammed . | . . . Reused . | . . . Traps Extracted . | . . . Installed . | . . . Triggered . | . . . Machines | -11 -10 -10 ---------- Run | Yrd Mat Min Machines Disabled . | . . . Max in Single Turn . | . . . Machines Repaired . | . . . Machines Dismantled . | . . . Machines Sabotaged . | . . . Overloaded Fab Kills . | . . . Hacking | -11 -10 -10 --------- Run | Yrd Mat Min Machines Accessed 3 | . 3 . Terminals 3 | . 3 . Fabricators . | . . . Repair Stations . | . . . Recycling Units . | . . . Scanalyzers . | . . . Garrison Access . | . . . Total Hacks 8 | . 8 . Successful 1 | . 1 . Failed 7 | . 7 . Catastrophic 2 | . 2 . Database Lockouts . | . . . Manual 7 | . 7 . Terminals 8 | . 8 . Fabricators . | . . . Repair Stations . | . . . Recycling Units . | . . . Scanalyzers . | . . . Garrison Access . | . . . Terminal Hacks 1 | . 1 . Unreport Threat 1 | . 1 . Fabricator Hacks . | . . . Repair Station Hacks . | . . . Recycling Unit Hacks . | . . . Scanalyzer . | . . . Garrison Access Hacks . | . . . Unauthorized Hacks . | . . . Terminals . | . . . Fabricators . | . . . Repair Stations . | . . . Recycling Units . | . . . Scanalyzers . | . . . Garrison Access . | . . . Data Cores Recovered . | . . . Used . | . . . Hacking Detections 3 | . 3 . Full Trace Events . | . . . Feedback Events . | . . . Feedback Blocked . | . . . Robot Schematics Acquired . | . . . Robots Built . | . . . Authchips . | . . . Time . | . . . Total Robot Build Rating . | . . . Part Schematics Acquired . | . . . Parts Built . | . . . Authchips . | . . . Time . | . . . Total Part Build Rating . | . . . Part Studies Acquired . | . . . Parts Repaired . | . . . Time . | . . . Parts Recycled . | . . . Recycled Matter . | . . . Retrieved Matter . | . . . Retrieved Components . | . . . Parts Scanalyzed . | . . . Part Schematics Acquired . | . . . Parts Damaged . | . . . Bothacking | -11 -10 -10 ------------ Run | Yrd Mat Min Used RIF Installer . | . . . Robots Hacked . | . . . Non-combat . | . . . Combat . | . . . Robot Hacks Applied . | . . . Relay Couplers Released . | . . . Fabnet Peak Effective % . | . . . Robots Rewired . | . . . Allies Hacked . | . . . Hacks Repelled . | . . . Allies | -11 -10 -10 -------- Run | Yrd Mat Min Total Allies . | . . . Largest Group . | . . . Highest-Rated Group . | . . . Highest-Rated Ally . | . . . Total Orders . | . . . Ally Attacks . | . . . Total Damage . | . . . Kills . | . . . Allies Corrupted . | . . . Allies Melted . | . . . Intel | -11 -10 -10 ------- Run | Yrd Mat Min Active Infowar (turns) 191 | 18 173 . Seismic 191 | 18 173 . Robot Analysis Total . | . . . Derelict Logs Recovered 1 | . . 1 Drone Launches . | . . . Drone Recoveries . | . . . Exploration | -11 -10 -10 ------------- Run | Yrd Mat Min Turns Passed 1192 | 133 590 469 Spaces Moved 727 | 68 319 340 Core 10 | 4 6 . Treads 64 | 64 . . Legs . | . . . Wheels 653 | . 313 340 Hover . | . . . Flight . | . . . Fastest Speed 50 | 50 95 110 Average Speed 110 | 153 101 110 Slowest Speed 250 | 160 250 115 Overloaded Moves . | . . . Propulsion Burnouts . | . . . Robots Hopped . | . . . Potential Cave-ins . | . . . Cave-ins Triggered . | . . . Exploration Rate (%) 42 | 3 48 75 Regions Visited 2 Branch Regions 1 Pre-discovered Areas . | . . . Known Exits Taken . | . . . Unknown Exits Taken 2 | 1 1 . Scrap Searched 1 | . . 1 Spaces Dug . | . . . Terrain Destroyed . | . . . Melee . | . . . Projectile . | . . . AOE . | . . . Terrain Rammed . | . . . Walls Destroyed . | . . . Machines Disabled . | . . . Actions | -11 -10 -10 --------- Run | Yrd Mat Min Total 944 | 85 467 392 Wait 92 | 2 63 27 Move 725 | 67 318 340 Hop . | . . . Pick Up 15 | 4 7 4 Fast Attach 15 | 6 9 . Attach 6 | 1 4 1 Detach . | . . . Swap 5 | 1 4 . Drop 3 | . 3 . Fire 83 | 4 59 20 Melee . | . . . Ram . | . . . Kick . | . . . Crush . | . . . Escape Stasis . | . . . Rewire . | . . . Trap . | . . . Miscellaneous . | . . . Route ------- -11/Scrapyard -10/Materials (discovered 2 exits: [*Mat] / [*Min]) -10/Mines History --------- Turn | Location | Event 4 | -11/Scrapyard | Discovered new exit (range 16) 134 | -11/Scrapyard | Entered Materials 338 | -10/Materials | Build established: Mutant 366 | -10/Materials | Discovered new exit (range 8) 572 | -10/Materials | Core integrity fell below 50% 669 | -10/Materials | Discovered new exit (range 9) 724 | -10/Materials | Entered Mines 902 | -10/Mines | Build established: Scavenger-Mutant 948 | -10/Mines | Core integrity fell below 20% 984 | -10/Mines | Learned location of 1 exit from Materials 1193 | -10/Mines | Destroyed by S-10 Pest with Light Assault Rifle Last Messages --------------- evicted by all these Unaware tunnelers." 01049_ "Blame H1-IDC, who apparently didn't care about the consequences of repeatedly making a mess in Materials. Shooting at robots and generally destroying stuff raised the alert level high enough to trigger assault squads over in the main complex, and they later decided the best way to defend their interests would be to start expanding in this direction." 01068_ T-07 Excavator is excavating. 01096_ S-10 Pest destroyed. 01096_ Switching to secondary target: S-10 Pest. 01099_ Wheel destroyed. 01102_ S-10 Pest destroyed. 01102_ Switching to secondary target: S-10 Pest. 01102_ S-10 Pest destroyed. 01106_ Acquired 10 matter. 01140_ K-01 Serf destroyed. 01179_ Acquired Wheel. Map ----- +----------------------------------------------------+ | ???## #??? ######## %#???????????????????? | | #### #??? #?????# !#???????????????????? | | ##??? #?????# #???????????????????? | | #???# #??##### #???????????????????? | | ????# ##### #???# ## #???????????????????? | | ?????# ##??# ###########?????????? | | ?????## ##### ##?# ??????? | | ??????# ##???## ### ??????? | | ??????# ##?????## ## ###########?????????? | | ??????# #???????## # #####???????????????????? | | ??????# #????????# # ########????????????????? | | ##????# #???????## # #?????????????? | | ##???# #????#### # ########????????????????? | | #???# #????# #???????????????????????? | | ##??# #???# #####???????????????????????? | | ##?# #???# #???????????????????????????? | | ### #???# ##???????????????????????????? | | =## #???# ##????????????????????????????? | | = *[%= #???## ##?????????????????????????????? | | %*%######????####???????????????????????????????? | | ##????????????????????????????????????????????? | | ###?????????????????????????????????????????????? | | ##???????????????????????????????????????????????? | | #############???????????????????#####????????????? | | #??????????##### #????????????? | | #??????????# @ ss #????????????? | | ############ ### s #????????????? | | """ """ %! #?????? #????????????? | | ! """ """ ##############??????????#????????????? | | """ """ #????????????????????????????????????? | | #????????????????????????????????????? | | #############????????????????????????????????????? | | ?????????????????????????????????????????????????? | | | | | | | | | | | | | | | | | | | | | | | | | | | | | | | | | | | +----------------------------------------------------+ Best States ------------- Heat Dissipation 39 Energy Generation 10 Energy Capacity 250 Matter Stores 300 Matter Capacity 300 Sight Range 16 Terrain Scan Density 10 Evasion (%) 41 Recoil Reduction 2 Item Schematics ----------------- None Robot Schematics ------------------ None Fabricated ------------ Nothing Repaired ---------- Nothing Studied --------- None Alien Tech Used ----------------- None Achievements -------------- None Challenges ------------ None Game ------ Seed ConcussiveTacticalMount Manual? 0 Play Time 00:08:53 Cumulative 134.8 hours Start 2026.03.19 @ 23:55:39 End 2026.03.20 @ 00:02:56 Sessions 1 Manual Loads 0 Difficulty Rogue Special Mode None Game No. 112 Rogue 112 Adventurer 0 Explorer 0 Win Type - Total 2 Types 2/0/0/0/0/0/0/0/0/0 Lore% 68 Gallery% 56 Achievement% 49 Wizard Run 0 Options --------- Layout 2 ASCII 0 Keyboard 0 Movement Mouse Keybinds 0 Fullscreen 1 Font 24/Smallcaps Map View 50x44 Zoom Use 0% Tactical HUD 1 Map Filters NONE Filters NONE Steam 1 RUN: d34b2020-42bc-4c6c-b85b-f1b82aea2969